[Event "Titled Tuesday Blitz June 28 Early 2022"]
[White "Pein, Jonathan"]
[Black "Antonio, Jorge Carlos"]
[WhiteFideId "417092"]
[BlackFideId "113190"]
[WhiteElo "2140"]
[BlackElo "2247"]
[Result "0-1"]
[Round "02"]
[TimeControl "180+1"]
[Date "2022.06.28"]
[WhiteClock "0:00:11"]
[BlackClock "0:00:49"]

1. e4 {[%clk 0:03:00]}  c5 {[%clk 0:02:59]} 2. b3 {[%clk 0:02:57]}  e6 {[%clk 0:02:58]} 3. Bb2 {[%clk 0:02:57]}  Nc6 {[%clk 0:02:54]} 4. Nf3 {[%clk 0:02:57]}  d5 {[%clk 0:02:54]} 5. exd5 {[%clk 0:02:56]}  exd5 {[%clk 0:02:53]} 6. Bb5 {[%clk 0:02:56]}  Qe7+ {[%clk 0:02:49]} 7. Qe2 {[%clk 0:02:55]}  Qxe2+ {[%clk 0:02:46]} 8. Bxe2 {[%clk 0:02:56]}  Bf5 {[%clk 0:02:41]} 9. Na3 {[%clk 0:02:49]}  Nf6 {[%clk 0:02:36]} 10. O-O {[%clk 0:02:49]}  Be7 {[%clk 0:02:33]} 11. Rfe1 {[%clk 0:02:47]}  O-O {[%clk 0:02:33]} 12. Bb5 {[%clk 0:02:47]}  Rfe8 {[%clk 0:02:29]} 13. Ne5 {[%clk 0:02:47]}  Rac8 {[%clk 0:02:25]} 14. d3 {[%clk 0:02:18]}  Bd6 {[%clk 0:02:20]} 15. Nxc6 {[%clk 0:02:09]}  Rxe1+ {[%clk 0:02:16]} 16. Rxe1 {[%clk 0:02:08]}  bxc6 {[%clk 0:02:14]} 17. Ba6 {[%clk 0:02:05]}  Rb8 {[%clk 0:02:10]} 18. Nb1 {[%clk 0:01:17]}  h6 {[%clk 0:02:06]} 19. Nd2 {[%clk 0:01:09]}  Be6 {[%clk 0:01:56]} 20. d4 {[%clk 0:00:56]}  c4 {[%clk 0:01:50]} 21. Nf3 {[%clk 0:00:14]}  Rb6 {[%clk 0:01:47]} 22. Bc8 {[%clk 0:00:13]}  Bxc8 {[%clk 0:01:42]} 23. Bc3 {[%clk 0:00:13]}  Be6 {[%clk 0:01:39]} 24. Ne5 {[%clk 0:00:13]}  Bxe5 {[%clk 0:01:37]} 25. dxe5 {[%clk 0:00:13]}  Ne4 {[%clk 0:01:35]} 26. Bd4 {[%clk 0:00:14]}  c5 {[%clk 0:01:34]} 27. Be3 {[%clk 0:00:13]}  d4 {[%clk 0:01:33]} 28. Bxd4 {[%clk 0:00:13]}  cxd4 {[%clk 0:01:33]} 29. Rxe4 {[%clk 0:00:14]}  cxb3 {[%clk 0:01:30]} 30. axb3 {[%clk 0:00:14]}  d3 {[%clk 0:01:29]} 31. cxd3 {[%clk 0:00:15]}  Rxb3 {[%clk 0:01:28]} 32. Ra4 {[%clk 0:00:16]}  Rxd3 {[%clk 0:01:22]} 33. h4 {[%clk 0:00:13]}  Rd7 {[%clk 0:01:20]} 34. g3 {[%clk 0:00:13]}  Bd5 {[%clk 0:01:19]} 35. Kf1 {[%clk 0:00:13]}  Bb7 {[%clk 0:01:14]} 36. Ke2 {[%clk 0:00:12]}  a6 {[%clk 0:01:13]} 37. Ke3 {[%clk 0:00:12]}  Rd8 {[%clk 0:01:10]} 38. f4 {[%clk 0:00:13]}  Ra8 {[%clk 0:01:09]} 39. Ra5 {[%clk 0:00:12]}  Bc6 {[%clk 0:01:08]} 40. Kd4 {[%clk 0:00:12]}  Bb5 {[%clk 0:01:08]} 41. f5 {[%clk 0:00:11]}  Rd8+ {[%clk 0:01:07]} 42. Ke4 {[%clk 0:00:12]}  Rd3 {[%clk 0:01:06]} 43. g4 {[%clk 0:00:11]}  Rg3 {[%clk 0:01:00]} 44. Kf4 {[%clk 0:00:11]}  Rh3 {[%clk 0:00:59]} 45. h5 {[%clk 0:00:11]}  Rd3 {[%clk 0:00:58]} 46. Ke4 {[%clk 0:00:11]}  Rd1 {[%clk 0:00:58]} 47. e6 {[%clk 0:00:11]}  fxe6 {[%clk 0:00:58]} 48. fxe6 {[%clk 0:00:12]}  Kf8 {[%clk 0:00:58]} 49. Ra3 {[%clk 0:00:11]}  Ke7 {[%clk 0:00:57]} 50. Re3 {[%clk 0:00:10]}  Kxe6 {[%clk 0:00:52]} 51. Kf4+ {[%clk 0:00:11]}  Kf6 {[%clk 0:00:52]} 52. Rc3 {[%clk 0:00:12]}  Rd4+ {[%clk 0:00:51]} 53. Ke3 {[%clk 0:00:11]}  Rxg4 {[%clk 0:00:49]} 54. Rc6+ {[%clk 0:00:11]} 0-1


[Site "https://www.chess.com"]

[Event "Titled Tuesday Blitz June 28 Early 2022"]
[White "Polster, Christian"]
[Black "Agibileg, Uurtsaikh"]
[WhiteFideId "12965081"]
[BlackFideId "4901606"]
[WhiteElo "2299"]
[BlackElo "2205"]
[Result "0-1"]
[Round "02"]
[TimeControl "180+1"]
[Date "2022.06.28"]
[WhiteClock "0:00:01"]
[BlackClock "0:01:26"]

1. e4 {[%clk 0:03:00]}  c5 {[%clk 0:02:59]} 2. Nc3 {[%clk 0:02:58]}  e6 {[%clk 0:02:59]} 3. Nge2 {[%clk 0:02:57]}  Nc6 {[%clk 0:02:59]} 4. g3 {[%clk 0:02:56]}  Nf6 {[%clk 0:02:57]} 5. Bg2 {[%clk 0:02:56]}  Be7 {[%clk 0:02:57]} 6. O-O {[%clk 0:02:56]}  O-O {[%clk 0:02:57]} 7. d4 {[%clk 0:02:56]}  cxd4 {[%clk 0:02:57]} 8. Nxd4 {[%clk 0:02:57]}  a6 {[%clk 0:02:56]} 9. Re1 {[%clk 0:02:52]}  Qc7 {[%clk 0:02:52]} 10. Bg5 {[%clk 0:02:15]}  d6 {[%clk 0:02:47]} 11. a4 {[%clk 0:02:08]}  Bd7 {[%clk 0:02:45]} 12. Nb3 {[%clk 0:01:44]}  Rfc8 {[%clk 0:02:44]} 13. a5 {[%clk 0:01:19]}  Ne5 {[%clk 0:02:44]} 14. Bc1 {[%clk 0:00:51]}  Bc6 {[%clk 0:02:39]} 15. Nd4 {[%clk 0:00:43]}  Bd7 {[%clk 0:02:31]} 16. Nb3 {[%clk 0:00:31]}  Nc4 {[%clk 0:02:30]} 17. Kh1 {[%clk 0:00:24]}  h5 {[%clk 0:02:21]} 18. f4 {[%clk 0:00:17]}  Ng4 {[%clk 0:02:19]} 19. Qe2 {[%clk 0:00:16]}  b5 {[%clk 0:02:08]} 20. axb6 {[%clk 0:00:11]}  Qxb6 {[%clk 0:02:05]} 21. Rf1 {[%clk 0:00:04]}  a5 {[%clk 0:01:41]} 22. h3 {[%clk 0:00:04]}  Nh6 {[%clk 0:01:33]} 23. Na4 {[%clk 0:00:04]}  Qa7 {[%clk 0:01:32]} 24. c3 {[%clk 0:00:02]}  Bb5 {[%clk 0:01:32]} 25. Qe1 {[%clk 0:00:01]}  Qd7 {[%clk 0:01:26]} 0-1


[Site "https://www.chess.com"]

[Event "Titled Tuesday Blitz June 28 Early 2022"]
[White "Prestia, Paris"]
[Black "Dardha, Daniel"]
[WhiteFideId "30925959"]
[BlackFideId "240990"]
[WhiteElo "2558"]
[BlackElo "2482"]
[Result "0-1"]
[Round "02"]
[TimeControl "180+1"]
[Date "2022.06.28"]
[WhiteClock "0:00:09"]
[BlackClock "0:01:10"]

1. d4 {[%clk 0:03:00]}  g6 {[%clk 0:02:54]} 2. c4 {[%clk 0:03:00]}  Bg7 {[%clk 0:02:53]} 3. Nc3 {[%clk 0:03:01]}  c5 {[%clk 0:02:53]} 4. e3 {[%clk 0:03:01]}  cxd4 {[%clk 0:02:53]} 5. exd4 {[%clk 0:03:02]}  e6 {[%clk 0:02:51]} 6. Nge2 {[%clk 0:03:01]}  Ne7 {[%clk 0:02:51]} 7. g3 {[%clk 0:03:01]}  d5 {[%clk 0:02:51]} 8. Bg2 {[%clk 0:02:59]}  dxc4 {[%clk 0:02:51]} 9. Qa4+ {[%clk 0:02:59]}  Bd7 {[%clk 0:02:50]} 10. Qxc4 {[%clk 0:02:59]}  Bc6 {[%clk 0:02:51]} 11. O-O {[%clk 0:02:58]}  O-O {[%clk 0:02:50]} 12. Bg5 {[%clk 0:02:57]}  Bxg2 {[%clk 0:02:48]} 13. Kxg2 {[%clk 0:02:56]}  Nbc6 {[%clk 0:02:48]} 14. Rad1 {[%clk 0:02:50]}  h6 {[%clk 0:02:47]} 15. Bxe7 {[%clk 0:02:48]}  Qxe7 {[%clk 0:02:39]} 16. d5 {[%clk 0:02:45]}  exd5 {[%clk 0:02:39]} 17. Qxd5 {[%clk 0:02:45]}  Rad8 {[%clk 0:02:35]} 18. Qf3 {[%clk 0:02:43]}  h5 {[%clk 0:02:29]} 19. h4 {[%clk 0:02:43]}  Qe6 {[%clk 0:02:24]} 20. Nf4 {[%clk 0:02:36]}  Qc4 {[%clk 0:02:23]} 21. Nfd5 {[%clk 0:02:28]}  Ne5 {[%clk 0:02:16]} 22. Qe4 {[%clk 0:02:23]}  Qxe4+ {[%clk 0:02:02]} 23. Nxe4 {[%clk 0:02:24]}  Nc6 {[%clk 0:01:55]} 24. b3 {[%clk 0:02:06]}  Bd4 {[%clk 0:01:53]} 25. Nf4 {[%clk 0:01:41]}  Kg7 {[%clk 0:01:50]} 26. Rd2 {[%clk 0:01:38]}  Be5 {[%clk 0:01:47]} 27. Rfd1 {[%clk 0:01:34]}  Bxf4 {[%clk 0:01:46]} 28. Rxd8 {[%clk 0:01:32]}  Rxd8 {[%clk 0:01:41]} 29. Rxd8 {[%clk 0:01:32]}  Nxd8 {[%clk 0:01:41]} 30. gxf4 {[%clk 0:01:32]}  Ne6 {[%clk 0:01:36]} 31. Kf3 {[%clk 0:01:32]}  Nd4+ {[%clk 0:01:36]} 32. Kg3 {[%clk 0:01:30]}  Ne2+ {[%clk 0:01:35]} 33. Kf3 {[%clk 0:01:30]}  Nd4+ {[%clk 0:01:35]} 34. Kg3 {[%clk 0:01:30]}  Nf5+ {[%clk 0:01:36]} 35. Kh3 {[%clk 0:01:30]}  Kf8 {[%clk 0:01:36]} 36. Ng3 {[%clk 0:01:09]}  Nd6 {[%clk 0:01:24]} 37. Kg2 {[%clk 0:01:07]}  Ke7 {[%clk 0:01:24]} 38. Kf3 {[%clk 0:01:08]}  Ke6 {[%clk 0:01:24]} 39. Ke3 {[%clk 0:01:05]}  Nf5+ {[%clk 0:01:19]} 40. Nxf5 {[%clk 0:01:02]}  Kxf5 {[%clk 0:01:20]} 41. Kf3 {[%clk 0:00:42]}  a6 {[%clk 0:01:17]} 42. b4 {[%clk 0:00:32]}  b5 {[%clk 0:01:14]} 43. a3 {[%clk 0:00:31]}  f6 {[%clk 0:01:15]} 44. Ke3 {[%clk 0:00:03]}  Kg4 {[%clk 0:01:13]} 45. Kd4 {[%clk 0:00:01]}  Kxf4 {[%clk 0:01:08]} 46. Kc5 {[%clk 0:00:02]}  g5 {[%clk 0:01:08]} 47. Kb6 {[%clk 0:00:03]}  gxh4 {[%clk 0:01:08]} 48. Kxa6 {[%clk 0:00:03]}  h3 {[%clk 0:01:08]} 49. Kxb5 {[%clk 0:00:03]}  h2 {[%clk 0:01:09]} 50. a4 {[%clk 0:00:04]}  h1=Q {[%clk 0:01:09]} 51. a5 {[%clk 0:00:05]}  Qb7+ {[%clk 0:01:09]} 52. Ka4 {[%clk 0:00:06]}  h4 {[%clk 0:01:10]} 53. b5 {[%clk 0:00:07]}  Qe4+ {[%clk 0:01:09]} 54. Kb3 {[%clk 0:00:07]}  h3 {[%clk 0:01:10]} 55. b6 {[%clk 0:00:07]}  h2 {[%clk 0:01:10]} 56. a6 {[%clk 0:00:08]}  h1=Q {[%clk 0:01:10]} 57. b7 {[%clk 0:00:08]}  Qhb1+ {[%clk 0:01:10]} 58. Kc3 {[%clk 0:00:09]}  Qed3# {[%clk 0:01:10]} 0-1


[Site "https://www.chess.com"]

[Event "Titled Tuesday Blitz June 28 Early 2022"]
[White "Prieto Aranguren, Alain"]
[Black "Shohat, Yotam"]
[WhiteFideId "2268906"]
[BlackFideId "2813955"]
[WhiteElo "2224"]
[BlackElo "2119"]
[Result "1/2-1/2"]
[Round "02"]
[TimeControl "180+1"]
[Date "2022.06.28"]
[WhiteClock "0:00:36"]
[BlackClock "0:00:04"]

1. d4 {[%clk 0:02:57]}  Nf6 {[%clk 0:02:59]} 2. Bg5 {[%clk 0:02:55]}  d5 {[%clk 0:02:38]} 3. e3 {[%clk 0:02:55]}  c5 {[%clk 0:02:13]} 4. Bxf6 {[%clk 0:02:54]}  gxf6 {[%clk 0:02:12]} 5. Nc3 {[%clk 0:02:53]}  cxd4 {[%clk 0:02:10]} 6. exd4 {[%clk 0:02:53]}  e6 {[%clk 0:02:07]} 7. Qh5 {[%clk 0:02:49]}  Nc6 {[%clk 0:01:55]} 8. Nge2 {[%clk 0:02:46]}  Bd7 {[%clk 0:01:50]} 9. O-O-O {[%clk 0:02:45]}  Qb6 {[%clk 0:01:40]} 10. Nf4 {[%clk 0:02:37]}  Bd6 {[%clk 0:00:38]} 11. Nfxd5 {[%clk 0:02:30]}  exd5 {[%clk 0:00:38]} 12. Re1+ {[%clk 0:02:25]}  Kd8 {[%clk 0:00:29]} 13. Qxf7 {[%clk 0:02:21]}  Rf8 {[%clk 0:00:22]} 14. Qxh7 {[%clk 0:02:17]}  Bf4+ {[%clk 0:00:16]} 15. Kb1 {[%clk 0:02:16]}  Bd2 {[%clk 0:00:16]} 16. Qg7 {[%clk 0:02:06]}  Bxc3 {[%clk 0:00:11]} 17. b3 {[%clk 0:01:54]}  Kc7 {[%clk 0:00:08]} 18. Qg3+ {[%clk 0:01:42]}  Kd8 {[%clk 0:00:03]} 19. Qxc3 {[%clk 0:01:40]}  Qxd4 {[%clk 0:00:04]} 20. Qxd4 {[%clk 0:01:36]}  Nxd4 {[%clk 0:00:04]} 21. Bd3 {[%clk 0:01:36]}  Kc7 {[%clk 0:00:05]} 22. h4 {[%clk 0:01:36]}  Rae8 {[%clk 0:00:05]} 23. h5 {[%clk 0:01:36]}  Rxe1+ {[%clk 0:00:05]} 24. Rxe1 {[%clk 0:01:36]}  Rh8 {[%clk 0:00:05]} 25. Rh1 {[%clk 0:01:36]}  Bg4 {[%clk 0:00:05]} 26. h6 {[%clk 0:01:35]}  Bf5 {[%clk 0:00:04]} 27. Rh4 {[%clk 0:01:24]}  Bxd3 {[%clk 0:00:03]} 28. Rxd4 {[%clk 0:01:22]}  Bg6 {[%clk 0:00:03]} 29. Rh4 {[%clk 0:01:18]}  Kd6 {[%clk 0:00:03]} 30. Kb2 {[%clk 0:01:18]}  Ke5 {[%clk 0:00:03]} 31. Kc3 {[%clk 0:01:19]}  Kf5 {[%clk 0:00:03]} 32. Kd4 {[%clk 0:01:19]}  Kg5 {[%clk 0:00:03]} 33. Rh3 {[%clk 0:01:14]}  Rxh6 {[%clk 0:00:04]} 34. Rg3+ {[%clk 0:01:03]}  Kf4 {[%clk 0:00:04]} 35. Rf3+ {[%clk 0:00:59]}  Kg5 {[%clk 0:00:04]} 36. Rg3+ {[%clk 0:00:59]}  Kf5 {[%clk 0:00:05]} 37. Kxd5 {[%clk 0:00:57]}  Rh4 {[%clk 0:00:04]} 38. c4 {[%clk 0:00:53]}  Rf4 {[%clk 0:00:05]} 39. Kd6 {[%clk 0:00:52]}  Rxf2 {[%clk 0:00:04]} 40. Kc7 {[%clk 0:00:51]}  Rxa2 {[%clk 0:00:04]} 41. Kxb7 {[%clk 0:00:52]}  a5 {[%clk 0:00:04]} 42. c5 {[%clk 0:00:52]}  Rc2 {[%clk 0:00:04]} 43. c6 {[%clk 0:00:52]}  Bf7 {[%clk 0:00:02]} 44. c7 {[%clk 0:00:51]}  Be6 {[%clk 0:00:02]} 45. Re3 {[%clk 0:00:45]}  Bd5+ {[%clk 0:00:02]} 46. Kb8 {[%clk 0:00:44]}  Bxg2 {[%clk 0:00:02]} 47. c8=Q+ {[%clk 0:00:43]}  Rxc8+ {[%clk 0:00:03]} 48. Kxc8 {[%clk 0:00:44]}  Kf4 {[%clk 0:00:03]} 49. Rc3 {[%clk 0:00:43]}  f5 {[%clk 0:00:03]} 50. Kd7 {[%clk 0:00:43]}  Be4 {[%clk 0:00:02]} 51. Kd6 {[%clk 0:00:40]}  Kg4 {[%clk 0:00:01]} 52. Rc5 {[%clk 0:00:40]}  f4 {[%clk 0:00:01]} 53. Rxa5 {[%clk 0:00:40]}  f3 {[%clk 0:00:02]} 54. Ra2 {[%clk 0:00:40]}  Kg3 {[%clk 0:00:02]} 55. b4 {[%clk 0:00:39]}  f2 {[%clk 0:00:02]} 56. Ra1 {[%clk 0:00:34]}  Kg2 {[%clk 0:00:02]} 57. b5 {[%clk 0:00:34]}  f1=Q {[%clk 0:00:02]} 58. Rxf1 {[%clk 0:00:34]}  Kxf1 {[%clk 0:00:03]} 59. b6 {[%clk 0:00:34]}  Ke2 {[%clk 0:00:04]} 60. Kc7 {[%clk 0:00:35]}  Kd3 {[%clk 0:00:04]} 61. b7 {[%clk 0:00:36]}  Bxb7 {[%clk 0:00:04]} 1/2-1/2


[Site "https://www.chess.com"]

[Event "Titled Tuesday Blitz June 28 Early 2022"]
[White "Rosen, Eric"]
[Black "Di Nicolantonio, Lucas"]
[WhiteFideId "2032562"]
[BlackFideId "680460"]
[WhiteElo "2362"]
[BlackElo "2381"]
[Result "1-0"]
[Round "02"]
[TimeControl "180+1"]
[Date "2022.06.28"]
[WhiteClock "0:00:48"]
[BlackClock "0:00:05"]

1. d4 {[%clk 0:02:58]}  g6 {[%clk 0:02:58]} 2. e4 {[%clk 0:02:58]}  Bg7 {[%clk 0:02:58]} 3. Nf3 {[%clk 0:02:58]}  d6 {[%clk 0:02:59]} 4. Bc4 {[%clk 0:02:59]}  e6 {[%clk 0:02:59]} 5. Bb3 {[%clk 0:02:58]}  Ne7 {[%clk 0:02:58]} 6. O-O {[%clk 0:02:59]}  b6 {[%clk 0:02:56]} 7. Re1 {[%clk 0:02:59]}  Bb7 {[%clk 0:02:56]} 8. c3 {[%clk 0:02:59]}  c5 {[%clk 0:02:53]} 9. Nbd2 {[%clk 0:02:59]}  Nbc6 {[%clk 0:02:48]} 10. Nf1 {[%clk 0:02:59]}  h6 {[%clk 0:02:40]} 11. Ng3 {[%clk 0:02:58]}  O-O {[%clk 0:02:38]} 12. Be3 {[%clk 0:02:58]}  Kh7 {[%clk 0:02:37]} 13. Qd2 {[%clk 0:02:56]}  Na5 {[%clk 0:02:38]} 14. Rad1 {[%clk 0:02:51]}  Nxb3 {[%clk 0:02:36]} 15. axb3 {[%clk 0:02:52]}  cxd4 {[%clk 0:02:17]} 16. Bxd4 {[%clk 0:02:48]}  e5 {[%clk 0:02:08]} 17. Be3 {[%clk 0:02:47]}  d5 {[%clk 0:02:06]} 18. exd5 {[%clk 0:02:32]}  Nxd5 {[%clk 0:01:58]} 19. Qe2 {[%clk 0:02:33]}  Qc7 {[%clk 0:01:50]} 20. c4 {[%clk 0:02:18]}  Nxe3 {[%clk 0:01:37]} 21. Qxe3 {[%clk 0:02:15]}  Rad8 {[%clk 0:01:38]} 22. Rxd8 {[%clk 0:01:46]}  Rxd8 {[%clk 0:01:37]} 23. Ne4 {[%clk 0:01:46]}  f5 {[%clk 0:01:30]} 24. Nc3 {[%clk 0:01:47]}  e4 {[%clk 0:01:30]} 25. Nd2 {[%clk 0:01:42]}  Rd3 {[%clk 0:01:27]} 26. Qe2 {[%clk 0:01:41]}  Qd6 {[%clk 0:01:11]} 27. Ndb1 {[%clk 0:01:33]}  a6 {[%clk 0:01:06]} 28. Rd1 {[%clk 0:01:31]}  h5 {[%clk 0:00:53]} 29. h4 {[%clk 0:01:24]}  Bf6 {[%clk 0:00:49]} 30. g3 {[%clk 0:01:14]}  Qd4 {[%clk 0:00:45]} 31. Rxd3 {[%clk 0:01:09]}  exd3 {[%clk 0:00:45]} 32. Qe3 {[%clk 0:01:09]}  Qxe3 {[%clk 0:00:32]} 33. fxe3 {[%clk 0:01:10]}  Be5 {[%clk 0:00:21]} 34. Kf2 {[%clk 0:01:10]}  Kg7 {[%clk 0:00:21]} 35. Nd2 {[%clk 0:01:10]}  Kf6 {[%clk 0:00:20]} 36. Na4 {[%clk 0:00:57]}  b5 {[%clk 0:00:18]} 37. Nc5 {[%clk 0:00:54]}  Bc8 {[%clk 0:00:18]} 38. Nxd3 {[%clk 0:00:53]}  Bd6 {[%clk 0:00:15]} 39. c5 {[%clk 0:00:50]}  Bc7 {[%clk 0:00:15]} 40. b4 {[%clk 0:00:51]}  a5 {[%clk 0:00:14]} 41. bxa5 {[%clk 0:00:49]}  Bxa5 {[%clk 0:00:15]} 42. b4 {[%clk 0:00:50]}  Bc7 {[%clk 0:00:16]} 43. Nf4 {[%clk 0:00:48]}  Bb7 {[%clk 0:00:12]} 44. Nf3 {[%clk 0:00:47]}  Bc6 {[%clk 0:00:06]} 45. Nd4 {[%clk 0:00:47]}  Be8 {[%clk 0:00:05]} 46. Nd5+ {[%clk 0:00:47]}  Ke5 {[%clk 0:00:05]} 47. Nxc7 {[%clk 0:00:48]}  Bf7 {[%clk 0:00:05]} 48. Ncxb5 {[%clk 0:00:48]} 1-0


[Site "https://www.chess.com"]

[Event "Titled Tuesday Blitz June 28 Early 2022"]
[White "Sahil, Tickoo"]
[Black "Jeet, Jain"]
[WhiteFideId "5019710"]
[BlackFideId "5073022"]
[WhiteElo "2047"]
[BlackElo "2055"]
[Result "0-1"]
[Round "02"]
[TimeControl "180+1"]
[Date "2022.06.28"]
[WhiteClock "0:00:05"]
[BlackClock "0:00:13"]

1. d4 {[%clk 0:03:00]}  Nf6 {[%clk 0:02:57]} 2. Bf4 {[%clk 0:02:57]}  g6 {[%clk 0:02:53]} 3. Nc3 {[%clk 0:02:56]}  d5 {[%clk 0:02:48]} 4. e3 {[%clk 0:02:54]}  Bg7 {[%clk 0:02:46]} 5. h4 {[%clk 0:02:53]}  h5 {[%clk 0:02:45]} 6. Nf3 {[%clk 0:02:49]}  c6 {[%clk 0:02:45]} 7. Ne5 {[%clk 0:02:46]}  Nbd7 {[%clk 0:02:44]} 8. Bd3 {[%clk 0:02:43]}  Qb6 {[%clk 0:02:39]} 9. Rb1 {[%clk 0:02:38]}  Nxe5 {[%clk 0:02:38]} 10. Bxe5 {[%clk 0:02:34]}  Bf5 {[%clk 0:02:34]} 11. O-O {[%clk 0:02:25]}  Bxd3 {[%clk 0:02:28]} 12. cxd3 {[%clk 0:02:24]}  O-O {[%clk 0:02:27]} 13. a3 {[%clk 0:02:23]}  Ng4 {[%clk 0:02:17]} 14. Bxg7 {[%clk 0:02:21]}  Kxg7 {[%clk 0:02:18]} 15. Qf3 {[%clk 0:02:12]}  Qc7 {[%clk 0:02:16]} 16. g3 {[%clk 0:02:08]}  Rae8 {[%clk 0:02:15]} 17. Rbc1 {[%clk 0:02:04]}  Qd6 {[%clk 0:02:10]} 18. Qf4 {[%clk 0:01:56]}  Qxf4 {[%clk 0:01:57]} 19. gxf4 {[%clk 0:01:47]}  Rd8 {[%clk 0:01:55]} 20. Kg2 {[%clk 0:01:46]}  f6 {[%clk 0:01:51]} 21. Ne2 {[%clk 0:01:37]}  e5 {[%clk 0:01:45]} 22. fxe5 {[%clk 0:01:34]}  fxe5 {[%clk 0:01:46]} 23. dxe5 {[%clk 0:01:32]}  Nxe5 {[%clk 0:01:47]} 24. Rc3 {[%clk 0:01:20]}  Rf5 {[%clk 0:01:37]} 25. Ng3 {[%clk 0:01:19]}  Rf7 {[%clk 0:01:34]} 26. d4 {[%clk 0:01:17]}  Nf3 {[%clk 0:01:31]} 27. Kh3 {[%clk 0:01:11]}  Nd2 {[%clk 0:01:26]} 28. Rg1 {[%clk 0:01:01]}  Kh6 {[%clk 0:01:15]} 29. f4 {[%clk 0:00:56]}  Re8 {[%clk 0:01:09]} 30. Nf1 {[%clk 0:00:47]}  Ne4 {[%clk 0:01:03]} 31. Rc2 {[%clk 0:00:46]}  Nf6 {[%clk 0:01:01]} 32. Rg3 {[%clk 0:00:40]}  Ng4 {[%clk 0:00:58]} 33. Kg2 {[%clk 0:00:33]}  Rfe7 {[%clk 0:00:53]} 34. Rc3 {[%clk 0:00:31]}  Kh7 {[%clk 0:00:50]} 35. b4 {[%clk 0:00:28]}  Nh6 {[%clk 0:00:49]} 36. Kf3 {[%clk 0:00:18]}  Nf5 {[%clk 0:00:48]} 37. Rh3 {[%clk 0:00:18]}  a6 {[%clk 0:00:46]} 38. Kf2 {[%clk 0:00:18]}  Nd6 {[%clk 0:00:42]} 39. Nd2 {[%clk 0:00:17]}  Nf5 {[%clk 0:00:39]} 40. Rb3 {[%clk 0:00:17]}  Ra8 {[%clk 0:00:37]} 41. Rh2 {[%clk 0:00:15]}  a5 {[%clk 0:00:37]} 42. b5 {[%clk 0:00:14]}  a4 {[%clk 0:00:21]} 43. Rb4 {[%clk 0:00:10]}  Rxe3 {[%clk 0:00:21]} 44. bxc6 {[%clk 0:00:10]}  bxc6 {[%clk 0:00:21]} 45. Rb7+ {[%clk 0:00:10]}  Kh6 {[%clk 0:00:18]} 46. Nf3 {[%clk 0:00:10]}  Re7 {[%clk 0:00:17]} 47. Rxe7 {[%clk 0:00:10]}  Nxe7 {[%clk 0:00:18]} 48. Rh1 {[%clk 0:00:10]}  Rb8 {[%clk 0:00:17]} 49. Rc1 {[%clk 0:00:10]}  Rb3 {[%clk 0:00:17]} 50. Ne5 {[%clk 0:00:10]}  Rxa3 {[%clk 0:00:16]} 51. Nxc6 {[%clk 0:00:11]}  Nf5 {[%clk 0:00:16]} 52. Ne5 {[%clk 0:00:10]}  Nxh4 {[%clk 0:00:15]} 53. Rc6 {[%clk 0:00:10]}  Ra2+ {[%clk 0:00:14]} 54. Kg3 {[%clk 0:00:10]}  Nf5+ {[%clk 0:00:14]} 55. Kh3 {[%clk 0:00:11]}  Nxd4 {[%clk 0:00:15]} 56. Rxg6+ {[%clk 0:00:10]}  Kh7 {[%clk 0:00:15]} 57. Rd6 {[%clk 0:00:11]}  Ra3+ {[%clk 0:00:14]} 58. Kh4 {[%clk 0:00:11]}  Nf5+ {[%clk 0:00:14]} 59. Kg5 {[%clk 0:00:11]}  Nxd6 {[%clk 0:00:15]} 60. f5 {[%clk 0:00:08]}  Ra1 {[%clk 0:00:12]} 61. f6 {[%clk 0:00:08]}  Rf1 {[%clk 0:00:12]} 62. Kxh5 {[%clk 0:00:06]}  Rxf6 {[%clk 0:00:12]} 63. Ng4 {[%clk 0:00:06]}  Rf5+ {[%clk 0:00:12]} 64. Kh4 {[%clk 0:00:06]}  Rf4 {[%clk 0:00:12]} 65. Kh5 {[%clk 0:00:05]}  Rxg4 {[%clk 0:00:13]} 0-1


[Site "https://www.chess.com"]

[Event "Titled Tuesday Blitz June 28 Early 2022"]
[White "Sanchez, Robert"]
[Black "Skliarov, Viktor"]
[WhiteFideId "2034360"]
[BlackFideId "14106736"]
[WhiteElo "2030"]
[BlackElo "2229"]
[Result "1-0"]
[Round "02"]
[TimeControl "180+1"]
[Date "2022.06.28"]
[WhiteClock "0:00:38"]
[BlackClock "0:00:05"]

1. e4 {[%clk 0:03:00]}  c5 {[%clk 0:02:58]} 2. Nf3 {[%clk 0:03:01]}  Nc6 {[%clk 0:02:58]} 3. d4 {[%clk 0:03:01]}  cxd4 {[%clk 0:02:59]} 4. Nxd4 {[%clk 0:03:02]}  Nf6 {[%clk 0:02:59]} 5. Nc3 {[%clk 0:03:02]}  e5 {[%clk 0:02:59]} 6. Ndb5 {[%clk 0:03:03]}  d6 {[%clk 0:03:00]} 7. Bg5 {[%clk 0:03:03]}  a6 {[%clk 0:03:00]} 8. Bxf6 {[%clk 0:03:03]}  gxf6 {[%clk 0:03:00]} 9. Na3 {[%clk 0:03:03]}  b5 {[%clk 0:03:00]} 10. Nd5 {[%clk 0:03:03]}  f5 {[%clk 0:03:01]} 11. Bd3 {[%clk 0:03:03]}  Be6 {[%clk 0:03:00]} 12. c4 {[%clk 0:03:03]}  Qa5+ {[%clk 0:02:51]} 13. Kf1 {[%clk 0:03:03]}  Bxd5 {[%clk 0:02:41]} 14. cxd5 {[%clk 0:03:00]}  Nd4 {[%clk 0:02:36]} 15. Nc2 {[%clk 0:02:58]}  fxe4 {[%clk 0:01:52]} 16. Bxe4 {[%clk 0:02:51]}  Bg7 {[%clk 0:01:49]} 17. Qd3 {[%clk 0:02:17]}  h6 {[%clk 0:01:31]} 18. h4 {[%clk 0:02:01]}  O-O {[%clk 0:01:24]} 19. Nxd4 {[%clk 0:02:00]}  exd4 {[%clk 0:01:23]} 20. Rh3 {[%clk 0:01:42]}  Rae8 {[%clk 0:01:01]} 21. Qf3 {[%clk 0:01:37]}  Re5 {[%clk 0:00:32]} 22. Bd3 {[%clk 0:01:19]}  Rfe8 {[%clk 0:00:30]} 23. g4 {[%clk 0:01:19]}  Re1+ {[%clk 0:00:26]} 24. Rxe1 {[%clk 0:01:19]}  Qxe1+ {[%clk 0:00:27]} 25. Kg2 {[%clk 0:01:19]}  Qd2 {[%clk 0:00:27]} 26. Qf5 {[%clk 0:01:12]}  Qxb2 {[%clk 0:00:18]} 27. Rf3 {[%clk 0:01:09]}  Re7 {[%clk 0:00:13]} 28. g5 {[%clk 0:01:08]}  Qc1 {[%clk 0:00:08]} 29. g6 {[%clk 0:01:03]}  Qc7 {[%clk 0:00:04]} 30. gxf7+ {[%clk 0:00:58]}  Rxf7 {[%clk 0:00:05]} 31. Qe6 {[%clk 0:00:46]}  Qe7 {[%clk 0:00:04]} 32. Bh7+ {[%clk 0:00:41]}  Kf8 {[%clk 0:00:05]} 33. Qc8+ {[%clk 0:00:39]}  Qe8 {[%clk 0:00:05]} 34. Qxe8+ {[%clk 0:00:39]}  Kxe8 {[%clk 0:00:05]} 35. Bg6 {[%clk 0:00:40]}  Be5 {[%clk 0:00:05]} 36. Bxf7+ {[%clk 0:00:39]}  Ke7 {[%clk 0:00:05]} 37. Be6 {[%clk 0:00:38]} 1-0


[Site "https://www.chess.com"]